Workbook

Sheet 总成绩
A1: 附件
A2: 贵安新区2024年统一公开招聘中小学教师笔试成绩、面试成绩、总成绩及进入体检 人员名单
A3: 序号 | B3: 准考证号 | C3: 姓名 | D3: 报考单位 | E3: 报考职位 | F3: 笔试科目 成绩 | G3: 笔试折算为100制 | H3: 笔试成绩 占比（40%） | I3: 面试科目 成绩 | J3: 面试成绩 占比（60%） | K3: 总成绩 | L3: 是否进入体检 | M3: 备注
A4: 1 | B4: 24010202416 | C4: 毛丽佳 | D4: 安顺市平坝区林卡中心小学 | E4: 24010401小学语文 | F4: 116.50 | G4: 77.67 | H4: 31.07 | I4: 81 | J4: 48.60 | K4: =H4+J4 -> 79.67 | L4: 是
A5: 2 | B5: 24010205402 | C5: 虎恩丹 | D5: 安顺市平坝区林卡中心小学 | E5: 24010401小学语文 | F5: 118.5 | G5: 79.00 | H5: 31.60 | I5: 79.6 | J5: 47.76 | K5: =H5+J5 -> 79.36
A6: 3 | B6: 24010205929 | C6: 杨文芬 | D6: 安顺市平坝区林卡中心小学 | E6: 24010401小学语文 | F6: 119.5 | G6: 79.67 | H6: 31.87 | I6: 79 | J6: 47.40 | K6: =H6+J6 -> 79.27
A7: 4 | B7: 24010201025 | C7: 谭荣芝 | D7: 安顺市平坝区林卡中心小学 | E7: 24010401小学语文 | F7: 118 | G7: 78.67 | H7: 31.47 | I7: 79.2 | J7: 47.52 | K7: =H7+J7 -> 78.99
A8: 5 | B8: 24010201006 | C8: 黄廷英 | D8: 安顺市平坝区林卡中心小学 | E8: 24010401小学语文 | F8: 116.5 | G8: 77.67 | H8: 31.07 | I8: 77.2 | J8: 46.32 | K8: =H8+J8 -> 77.39
A9: 6 | B9: 24010205528 | C9: 杨维维 | D9: 安顺市平坝区林卡中心小学 | E9: 24010401小学语文 | F9: 116.5 | G9: 77.67 | H9: 31.07 | I9: 缺考
A10: 7 | B10: 24010203508 | C10: 敖爽爽 | D10: 安顺市平坝区普贡中学 | E10: 24010501初中语文 | F10: 121.5 | G10: 81.00 | H10: 32.40 | I10: 81.8 | J10: 49.08 | K10: =H10+J10 -> 81.48 | L10: 是
A11: 8 | B11: 24010200127 | C11: 肖娜 | D11: 安顺市平坝区普贡中学 | E11: 24010501初中语文 | F11: 132 | G11: 88.00 | H11: 35.20 | I11: 75 | J11: 45.00 | K11: =H11+J11 -> 80.20
A12: 9 | B12: 24010205416 | C12: 李学梅 | D12: 安顺市平坝区普贡中学 | E12: 24010501初中语文 | F12: 118.5 | G12: 79.00 | H12: 31.60 | I12: 77.6 | J12: 46.56 | K12: =H12+J12 -> 78.16
A13: 10 | B13: 24010203006 | C13: 陈颖 | D13: 安顺市平坝区普贡中学 | E13: 24010501初中语文 | F13: 119 | G13: 79.33 | H13: 31.73 | I13: 76.8 | J13: 46.08 | K13: =H13+J13 -> 77.81
A14: 11 | B14: 24010206430 | C14: 何青青 | D14: 安顺市平坝区普贡中学 | E14: 24010501初中语文 | F14: 117 | G14: 78.00 | H14: 31.20 | I14: 75.2 | J14: 45.12 | K14: =H14+J14 -> 76.32
A15: 12 | B15: 24010200807 | C15: 梁飞龙 | D15: 安顺市平坝区普贡中学 | E15: 24010501初中语文 | F15: 116 | G15: 77.33 | H15: 30.93 | I15: 缺考
A16: 13 | B16: 24010205510 | C16: 雷远华 | D16: 安顺市平坝区普贡中学 | E16: 24010502初中数学 | F16: 119.5 | G16: 79.67 | H16: 31.87 | I16: 83.8 | J16: 50.28 | K16: =H16+J16 -> 82.15 | L16: 是
A17: 14 | B17: 24010202101 | C17: 蒋家南 | D17: 安顺市平坝区普贡中学 | E17: 24010502初中数学 | F17: 117 | G17: 78.00 | H17: 31.20 | I17: 83 | J17: 49.80 | K17: 81.00
A18: 15 | B18: 24010203305 | C18: 黄啟相 | D18: 安顺市平坝区普贡中学 | E18: 24010502初中数学 | F18: 121 | G18: 80.67 | H18: 32.27 | I18: 78 | J18: 46.80 | K18: 79.07
A19: 16 | B19: 24010206128 | C19: 刘春 | D19: 安顺市平坝区普贡中学 | E19: 24010502初中数学 | F19: 116.5 | G19: 77.67 | H19: 31.07 | I19: 77.8 | J19: 46.68 | K19: 77.75
A20: 17 | B20: 24010204918 | C20: 旷婷 | D20: 安顺市平坝区普贡中学 | E20: 24010502初中数学 | F20: 119.5 | G20: 79.67 | H20: 31.87 | I20: 75.6 | J20: 45.36 | K20: 77.23
A21: 18 | B21: 24010200720 | C21: 黄丹 | D21: 安顺市平坝区普贡中学 | E21: 24010502初中数学 | F21: 109 | G21: 72.67 | H21: 29.07 | I21: 70.6 | J21: 42.36 | K21: 71.43
A22: 19 | B22: 24010200615 | C22: 杨全英 | D22: 安顺市平坝区普贡中学 | E22: 24010503初中英语 | F22: 127.5 | G22: 85.00 | H22: 34.00 | I22: 79.2 | J22: 47.52 | K22: 81.52 | L22: 是
A23: 20 | B23: 24010204111 | C23: 赵娥娥 | D23: 安顺市平坝区普贡中学 | E23: 24010503初中英语 | F23: 119.5 | G23: 79.67 | H23: 31.87 | I23: 79.4 | J23: 47.64 | K23: 79.51 | L23: 是
A24: 21 | B24: 24010200727 | C24: 刘前 | D24: 安顺市平坝区普贡中学 | E24: 24010503初中英语 | F24: 125.5 | G24: 83.67 | H24: 33.47 | I24: 75.6 | J24: 45.36 | K24: 78.83
A25: 22 | B25: 24010206413 | C25: 丁玲 | D25: 安顺市平坝区普贡中学 | E25: 24010503初中英语 | F25: 131 | G25: 87.33 | H25: 34.93 | I25: 72.2 | J25: 43.32 | K25: 78.25
A26: 23 | B26: 24010203606 | C26: 罗家宣 | D26: 安顺市平坝区普贡中学 | E26: 24010503初中英语 | F26: 119.5 | G26: 79.67 | H26: 31.87 | I26: 75.8 | J26: 45.48 | K26: 77.35
A27: 24 | B27: 24010201230 | C27: 吴亚玲 | D27: 安顺市平坝区普贡中学 | E27: 24010503初中英语 | F27: 119 | G27: 79.33 | H27: 31.73 | I27: 75.4 | J27: 45.24 | K27: 76.97
A28: 25 | B28: 24010201206 | C28: 李小英 | D28: 安顺市平坝区普贡中学 | E28: 24010503初中英语 | F28: 121.5 | G28: 81.00 | H28: 32.40 | I28: 74 | J28: 44.40 | K28: 76.80
A29: 26 | B29: 24010205313 | C29: 魏仲贤 | D29: 安顺市平坝区普贡中学 | E29: 24010503初中英语 | F29: 119.5 | G29: 79.67 | H29: 31.87 | I29: 73.4 | J29: 44.04 | K29: 75.91
A30: 27 | B30: 24010205115 | C30: 姚启碧 | D30: 安顺市平坝区普贡中学 | E30: 24010503初中英语 | F30: 120.5 | G30: 80.33 | H30: 32.13 | I30: 72 | J30: 43.20 | K30: 75.33
A31: 28 | B31: 24010200610 | C31: 冯燕 | D31: 安顺市平坝区普贡中学 | E31: 24010503初中英语 | F31: 122 | G31: 81.33 | H31: 32.53 | I31: 70.2 | J31: 42.12 | K31: 74.65
A32: 29 | B32: 24010201116 | C32: 严发琴 | D32: 安顺市平坝区普贡中学 | E32: 24010503初中英语 | F32: 117.5 | G32: 78.33 | H32: 31.33 | I32: 70 | J32: 42.00 | K32: 73.33
A33: 30 | B33: 24010202914 | C33: 柏星 | D33: 安顺市平坝区普贡中学 | E33: 24010503初中英语 | F33: 118 | G33: 78.67 | H33: 31.47 | I33: 缺考
A34: 31 | B34: 24010206205 | C34: 陈璐 | D34: 安顺市平坝区普贡中学 | E34: 24010504初中物理 | F34: 116.5 | G34: 77.67 | H34: 31.07 | I34: 85.8 | J34: 51.48 | K34: =H34+J34 -> 82.55 | L34: 是
A35: 32 | B35: 24010204823 | C35: 胡健 | D35: 安顺市平坝区普贡中学 | E35: 24010504初中物理 | F35: 115.5 | G35: 77.00 | H35: 30.80 | I35: 78.2 | J35: 46.92 | K35: 77.72
A36: 33 | B36: 24010206024 | C36: 贺智蝶 | D36: 安顺市平坝区普贡中学 | E36: 24010504初中物理 | F36: 106.5 | G36: 71.00 | H36: 28.40 | I36: 80.4 | J36: 48.24 | K36: 76.64
A37: 34 | B37: 24010202918 | C37: 古应敏 | D37: 安顺市平坝区普贡中学 | E37: 24010504初中物理 | F37: 106.5 | G37: 71.00 | H37: 28.40 | I37: 77 | J37: 46.20 | K37: 74.60
A38: 35 | B38: 24010200406 | C38: 锁良华 | D38: 安顺市平坝区普贡中学 | E38: 24010504初中物理 | F38: 115.5 | G38: 77.00 | H38: 30.80 | I38: 72.8 | J38: 43.68 | K38: 74.48
A39: 36 | B39: 24010201223 | C39: 董贵彻 | D39: 安顺市平坝区普贡中学 | E39: 24010504初中物理 | F39: 109.5 | G39: 73.00 | H39: 29.20 | I39: 74 | J39: 44.40 | K39: 73.60
A40: 37 | B40: 24010205230 | C40: 朱蕾 | D40: 安顺市平坝区普贡中学 | E40: 24010505初中历史 | F40: 119.5 | G40: 79.67 | H40: 31.87 | I40: 84.6 | J40: 50.76 | K40: 82.63 | L40: 是
A41: 38 | B41: 24010201115 | C41: 刘婷 | D41: 安顺市平坝区普贡中学 | E41: 24010505初中历史 | F41: 120.5 | G41: 80.33 | H41: 32.13 | I41: 83.2 | J41: 49.92 | K41: 82.05
A42: 39 | B42: 24010200518 | C42: 包卉 | D42: 安顺市平坝区普贡中学 | E42: 24010505初中历史 | F42: 120.5 | G42: 80.33 | H42: 32.13 | I42: 82.2 | J42: 49.32 | K42: 81.45
A43: 40 | B43: 24010202218 | C43: 刘传维 | D43: 安顺市平坝区普贡中学 | E43: 24010505初中历史 | F43: 119 | G43: 79.33 | H43: 31.73 | I43: 80.6 | J43: 48.36 | K43: 80.09
A44: 41 | B44: 24010203313 | C44: 吴艳 | D44: 安顺市平坝区普贡中学 | E44: 24010505初中历史 | F44: 117 | G44: 78.00 | H44: 31.20 | I44: 80.8 | J44: 48.48 | K44: 79.68
A45: 42 | B45: 24010200926 | C45: 李玉兰 | D45: 安顺市平坝区普贡中学 | E45: 24010505初中历史 | F45: 118 | G45: 78.67 | H45: 31.47 | I45: 75.6 | J45: 45.36 | K45: 76.83
A46: 43 | B46: 24010204204 | C46: 陈婷婷 | D46: 安顺市平坝区普贡中学 | E46: 24010506初中政治 | F46: 130 | G46: 86.67 | H46: 34.67 | I46: 86.4 | J46: 51.84 | K46: 86.51 | L46: 是
A47: 44 | B47: 24010205908 | C47: 余訇 | D47: 安顺市平坝区普贡中学 | E47: 24010506初中政治 | F47: 122.5 | G47: 81.67 | H47: 32.67 | I47: 80.8 | J47: 48.48 | K47: 81.15
A48: 45 | B48: 24010203602 | C48: 金妮 | D48: 安顺市平坝区普贡中学 | E48: 24010506初中政治 | F48: 121.5 | G48: 81.00 | H48: 32.40 | I48: 79.4 | J48: 47.64 | K48: 80.04
A49: 46 | B49: 24010205208 | C49: 陈婷 | D49: 安顺市平坝区普贡中学 | E49: 24010506初中政治 | F49: 126.5 | G49: 84.33 | H49: 33.73 | I49: 76.4 | J49: 45.84 | K49: 79.57
A50: 47 | B50: 24010202211 | C50: 周娜 | D50: 安顺市平坝区普贡中学 | E50: 24010506初中政治 | F50: 124.5 | G50: 83.00 | H50: 33.20 | I50: 76 | J50: 45.60 | K50: 78.80
A51: 48 | B51: 24010204828 | C51: 陈礼慧 | D51: 安顺市平坝区普贡中学 | E51: 24010506初中政治 | F51: 123.5 | G51: 82.33 | H51: 32.93 | I51: 70.6 | J51: 42.36 | K51: 75.29
A52: 49 | B52: 24010205606 | C52: 邓连菊 | D52: 安顺市平坝区普贡中学 | E52: 24010507初中化学 | F52: 122.5 | G52: 81.67 | H52: 32.67 | I52: 84.4 | J52: 50.64 | K52: 83.31 | L52: 是
A53: 50 | B53: 24010200905 | C53: 唐珊 | D53: 安顺市平坝区普贡中学 | E53: 24010507初中化学 | F53: 119.5 | G53: 79.67 | H53: 31.87 | I53: 76.4 | J53: 45.84 | K53: 77.71
A54: 51 | B54: 24010203426 | C54: 刘文 | D54: 安顺市平坝区普贡中学 | E54: 24010507初中化学 | F54: 125.5 | G54: 83.67 | H54: 33.47 | I54: 72.2 | J54: 43.32 | K54: 76.79
A55: 52 | B55: 24010204013 | C55: 王曼娜 | D55: 安顺市平坝区普贡中学 | E55: 24010507初中化学 | F55: 123 | G55: 82.00 | H55: 32.80 | I55: 缺考
A56: 53 | B56: 24010200917 | C56: 张听听 | D56: 安顺市平坝区普贡中学 | E56: 24010507初中化学 | F56: 120.5 | G56: 80.33 | H56: 32.13 | I56: 缺考
A57: 54 | B57: 24010202117 | C57: 石德会 | D57: 安顺市平坝区普贡中学 | E57: 24010507初中化学 | F57: 120 | G57: 80.00 | H57: 32.00 | I57: 未按相关要求取得教师资格证不进入试教
A58: 55 | B58: 24010206306 | C58: 周星 | D58: 贵安新区实验小学 | E58: 24010601小学语文 | F58: 125.5 | G58: 83.67 | H58: 33.47 | I58: 84.6 | J58: 50.76 | K58: =H58+J58 -> 84.23 | L58: 是
A59: 56 | B59: 24010200523 | C59: 曾高琴 | D59: 贵安新区实验小学 | E59: 24010601小学语文 | F59: 125.5 | G59: 83.67 | H59: 33.47 | I59: 82 | J59: 49.20 | K59: =H59+J59 -> 82.67
A60: 57 | B60: 24010206124 | C60: 卢华锋 | D60: 贵安新区实验小学 | E60: 24010601小学语文 | F60: 119.5 | G60: 79.67 | H60: 31.87 | I60: 77 | J60: 46.20 | K60: =H60+J60 -> 78.07
A61: 58 | B61: 24010205425 | C61: 陈辉丽 | D61: 贵安新区实验小学 | E61: 24010601小学语文 | F61: 115 | G61: 76.67 | H61: 30.67 | I61: 78 | J61: 46.80 | K61: =H61+J61 -> 77.47
A62: 59 | B62: 24010202924 | C62: 罗秋雪 | D62: 贵安新区实验小学 | E62: 24010601小学语文 | F62: 121.5 | G62: 81.00 | H62: 32.40 | I62: 74.6 | J62: 44.76 | K62: =H62+J62 -> 77.16
A63: 60 | B63: 24010203615 | C63: 杨兴悦 | D63: 贵安新区实验小学 | E63: 24010601小学语文 | F63: 119.5 | G63: 79.67 | H63: 31.87 | I63: 缺考
A64: 61 | B64: 24010205903 | C64: 高玉倩 | D64: 贵安新区实验小学 | E64: 24010602小学数学 | F64: 116 | G64: 77.33 | H64: 30.93 | I64: 85.6 | J64: 51.36 | K64: =H64+J64 -> 82.29 | L64: 是
A65: 62 | B65: 24010206121 | C65: 孙莉 | D65: 贵安新区实验小学 | E65: 24010602小学数学 | F65: 115 | G65: 76.67 | H65: 30.67 | I65: 80 | J65: 48.00 | K65: 78.67
A66: 63 | B66: 24010202119 | C66: 王爱艳 | D66: 贵安新区实验小学 | E66: 24010602小学数学 | F66: 117.5 | G66: 78.33 | H66: 31.33 | I66: 77.2 | J66: 46.32 | K66: 77.65
A67: 64 | B67: 24010201925 | C67: 陈王明 | D67: 贵安新区实验小学 | E67: 24010602小学数学 | F67: 103 | G67: 68.67 | H67: 27.47 | I67: 78.8 | J67: 47.28 | K67: 74.75
A68: 65 | B68: 24010205919 | C68: 张天敏 | D68: 贵安新区实验小学 | E68: 24010602小学数学 | F68: 111.5 | G68: 74.33 | H68: 29.73 | I68: 72.4 | J68: 43.44 | K68: 73.17
A69: 66 | B69: 24010201012 | C69: 唐婷婷 | D69: 贵安新区实验小学 | E69: 24010602小学数学 | F69: 103 | G69: 68.67 | H69: 27.47 | I69: 71.4 | J69: 42.84 | K69: 70.31
A70: 67 | B70: 24010203030 | C70: 左亮亮 | D70: 贵安新区实验小学 | E70: 24010602小学数学 | F70: 107 | G70: 71.33 | H70: 28.53 | I70: 缺考
A71: 68 | B71: 24010204912 | C71: 谭雪岚 | D71: 贵阳市实验小学贵安新区分校 | E71: 24010201小学语文 | F71: 126 | G71: 84.00 | H71: 33.60 | I71: 90.8 | J71: 54.48 | K71: =H71+J71 -> 88.08 | L71: 是
A72: 69 | B72: 24010200513 | C72: 金珈羽 | D72: 贵阳市实验小学贵安新区分校 | E72: 24010201小学语文 | F72: 126.5 | G72: 84.33 | H72: 33.73 | I72: 89.8 | J72: 53.88 | K72: 87.61 | L72: 是
A73: 70 | B73: 24010202812 | C73: 聂杨婉平 | D73: 贵阳市实验小学贵安新区分校 | E73: 24010201小学语文 | F73: 126 | G73: 84.00 | H73: 33.60 | I73: 86.2 | J73: 51.72 | K73: 85.32 | L73: 是
A74: 71 | B74: 24010203512 | C74: 冯鑫 | D74: 贵阳市实验小学贵安新区分校 | E74: 24010201小学语文 | F74: 120 | G74: 80.00 | H74: 32.00 | I74: 88.8 | J74: 53.28 | K74: 85.28 | L74: 是
A75: 72 | B75: 24010204427 | C75: 王旭兰 | D75: 贵阳市实验小学贵安新区分校 | E75: 24010201小学语文 | F75: 119 | G75: 79.33 | H75: 31.73 | I75: 87.2 | J75: 52.32 | K75: 84.05 | L75: 是
A76: 73 | B76: 24010205713 | C76: 杨姣 | D76: 贵阳市实验小学贵安新区分校 | E76: 24010201小学语文 | F76: 131.5 | G76: 87.67 | H76: 35.07 | I76: 81 | J76: 48.60 | K76: 83.67
A77: 74 | B77: 24010201906 | C77: 罗溪瑞 | D77: 贵阳市实验小学贵安新区分校 | E77: 24010201小学语文 | F77: 123 | G77: 82.00 | H77: 32.80 | I77: 84 | J77: 50.40 | K77: 83.20
A78: 75 | B78: 24010201201 | C78: 沈友琴 | D78: 贵阳市实验小学贵安新区分校 | E78: 24010201小学语文 | F78: 121.5 | G78: 81.00 | H78: 32.40 | I78: 84.4 | J78: 50.64 | K78: 83.04
A79: 76 | B79: 24010200913 | C79: 杨希希 | D79: 贵阳市实验小学贵安新区分校 | E79: 24010201小学语文 | F79: 119.5 | G79: 79.67 | H79: 31.87 | I79: 85.2 | J79: 51.12 | K79: 82.99
A80: 77 | B80: 24010201629 | C80: 成县 | D80: 贵阳市实验小学贵安新区分校 | E80: 24010201小学语文 | F80: 120.5 | G80: 80.33 | H80: 32.13 | I80: 84.6 | J80: 50.76 | K80: 82.89
A81: 78 | B81: 24010205826 | C81: 陈中迪 | D81: 贵阳市实验小学贵安新区分校 | E81: 24010201小学语文 | F81: 121.5 | G81: 81.00 | H81: 32.40 | I81: 84 | J81: 50.40 | K81: 82.80
A82: 79 | B82: 24010205830 | C82: 陈晓玉 | D82: 贵阳市实验小学贵安新区分校 | E82: 24010201小学语文 | F82: 120 | G82: 80.00 | H82: 32.00 | I82: 84.6 | J82: 50.76 | K82: 82.76
A83: 80 | B83: 24010204917 | C83: 罗长妹 | D83: 贵阳市实验小学贵安新区分校 | E83: 24010201小学语文 | F83: 123.5 | G83: 82.33 | H83: 32.93 | I83: 82 | J83: 49.20 | K83: 82.13
A84: 81 | B84: 24010201215 | C84: 邱月 | D84: 贵阳市实验小学贵安新区分校 | E84: 24010201小学语文 | F84: 121 | G84: 80.67 | H84: 32.27 | I84: 83 | J84: 49.80 | K84: 82.07
A85: 82 | B85: 24010205427 | C85: 朱紫平 | D85: 贵阳市实验小学贵安新区分校 | E85: 24010201小学语文 | F85: 123.5 | G85: 82.33 | H85: 32.93 | I85: 81 | J85: 48.60 | K85: 81.53
A86: 83 | B86: 24010203415 | C86: 杨莎 | D86: 贵阳市实验小学贵安新区分校 | E86: 24010201小学语文 | F86: 119 | G86: 79.33 | H86: 31.73 | I86: 83 | J86: 49.80 | K86: 81.53
A87: 84 | B87: 24010200310 | C87: 刘嫚 | D87: 贵阳市实验小学贵安新区分校 | E87: 24010201小学语文 | F87: 119.5 | G87: 79.67 | H87: 31.87 | I87: 82.2 | J87: 49.32 | K87: 81.19
A88: 85 | B88: 24010204529 | C88: 陈松 | D88: 贵阳市实验小学贵安新区分校 | E88: 24010201小学语文 | F88: 119 | G88: 79.33 | H88: 31.73 | I88: 82.4 | J88: 49.44 | K88: 81.17
A89: 86 | B89: 24010206427 | C89: 杨文君 | D89: 贵阳市实验小学贵安新区分校 | E89: 24010201小学语文 | F89: 121.5 | G89: 81.00 | H89: 32.40 | I89: 80.8 | J89: 48.48 | K89: 80.88
A90: 87 | B90: 24010205924 | C90: 张秀玲 | D90: 贵阳市实验小学贵安新区分校 | E90: 24010201小学语文 | F90: 121 | G90: 80.67 | H90: 32.27 | I90: 80.8 | J90: 48.48 | K90: 80.75
A91: 88 | B91: 24010203815 | C91: 罗云梅 | D91: 贵阳市实验小学贵安新区分校 | E91: 24010201小学语文 | F91: 124 | G91: 82.67 | H91: 33.07 | I91: 79 | J91: 47.40 | K91: 80.47
A92: 89 | B92: 24010204922 | C92: 莫仁芳 | D92: 贵阳市实验小学贵安新区分校 | E92: 24010201小学语文 | F92: 127 | G92: 84.67 | H92: 33.87 | I92: 77.6 | J92: 46.56 | K92: 80.43
A93: 90 | B93: 24010203206 | C93: 杨蝶 | D93: 贵阳市实验小学贵安新区分校 | E93: 24010201小学语文 | F93: 119.5 | G93: 79.67 | H93: 31.87 | I93: 80.2 | J93: 48.12 | K93: 79.99
A94: 91 | B94: 24010201325 | C94: 余海艳 | D94: 贵阳市实验小学贵安新区分校 | E94: 24010201小学语文 | F94: 122 | G94: 81.33 | H94: 32.53 | I94: 76.6 | J94: 45.96 | K94: 78.49
A95: 92 | B95: 24010206407 | C95: 李文佳 | D95: 贵阳市实验小学贵安新区分校 | E95: 24010201小学语文 | F95: 120.5 | G95: 80.33 | H95: 32.13 | I95: 77.2 | J95: 46.32 | K95: 78.45
A96: 93 | B96: 24010200230 | C96: 郜青 | D96: 贵阳市实验小学贵安新区分校 | E96: 24010201小学语文 | F96: 119 | G96: 79.33 | H96: 31.73 | I96: 77.2 | J96: 46.32 | K96: 78.05
A97: 94 | B97: 24010202018 | C97: 张亚 | D97: 贵阳市实验小学贵安新区分校 | E97: 24010201小学语文 | F97: 121 | G97: 80.67 | H97: 32.27 | I97: 75.4 | J97: 45.24 | K97: 77.51
A98: 95 | B98: 24010203127 | C98: 杜艳琴 | D98: 贵阳市实验小学贵安新区分校 | E98: 24010201小学语文 | F98: 120 | G98: 80.00 | H98: 32.00 | I98: 75.8 | J98: 45.48 | K98: 77.48
A99: 96 | B99: 24010201516 | C99: 虎林威 | D99: 贵阳市实验小学贵安新区分校 | E99: 24010201小学语文 | F99: 119.5 | G99: 79.67 | H99: 31.87 | I99: 70.2 | J99: 42.12 | K99: 73.99
A100: 97 | B100: 24010204318 | C100: 瞿婷 | D100: 贵阳市实验小学贵安新区分校 | E100: 24010201小学语文 | F100: 131 | G100: 87.33 | H100: 34.93 | I100: 缺考
A101: 98 | B101: 24010204413 | C101: 梁浴 | D101: 贵阳市实验小学贵安新区分校 | E101: 24010201小学语文 | F101: 119.5 | G101: 79.67 | H101: 31.87 | I101: 缺考
A102: 99 | B102: 24010201211 | C102: 贺琴 | D102: 贵阳市实验小学贵安新区分校 | E102: 24010202小学语文 | F102: 128.5 | G102: 85.67 | H102: 34.27 | I102: 84.2 | J102: 50.52 | K102: =H102+J102 -> 84.79 | L102: 是
A103: 100 | B103: 24010202724 | C103: 刘晔 | D103: 贵阳市实验小学贵安新区分校 | E103: 24010202小学语文 | F103: 120 | G103: 80.00 | H103: 32.00 | I103: 85 | J103: 51.00 | K103: 83.00 | L103: 是
A104: 101 | B104: 24010204430 | C104: 郎慧琳 | D104: 贵阳市实验小学贵安新区分校 | E104: 24010202小学语文 | F104: 117.5 | G104: 78.33 | H104: 31.33 | I104: 86 | J104: 51.60 | K104: 82.93 | L104: 是
A105: 102 | B105: 24010204130 | C105: 罗庆菊 | D105: 贵阳市实验小学贵安新区分校 | E105: 24010202小学语文 | F105: 117.00 | G105: 78.00 | H105: 31.20 | I105: 84.4 | J105: 50.64 | K105: 81.84 | L105: 是
A106: 103 | B106: 24010201811 | C106: 余静 | D106: 贵阳市实验小学贵安新区分校 | E106: 24010202小学语文 | F106: 121 | G106: 80.67 | H106: 32.27 | I106: 82.6 | J106: 49.56 | K106: 81.83
A107: 104 | B107: 24010206406 | C107: 龙雪蒙 | D107: 贵阳市实验小学贵安新区分校 | E107: 24010202小学语文 | F107: 118 | G107: 78.67 | H107: 31.47 | I107: 82 | J107: 49.20 | K107: 80.67
A108: 105 | B108: 24010202530 | C108: 李艳艳 | D108: 贵阳市实验小学贵安新区分校 | E108: 24010202小学语文 | F108: 118.5 | G108: 79.00 | H108: 31.60 | I108: 81.6 | J108: 48.96 | K108: 80.56
A109: 106 | B109: 24010203926 | C109: 侯新容 | D109: 贵阳市实验小学贵安新区分校 | E109: 24010202小学语文 | F109: 120 | G109: 80.00 | H109: 32.00 | I109: 80.8 | J109: 48.48 | K109: 80.48
A110: 107 | B110: 24010201117 | C110: 覃丽 | D110: 贵阳市实验小学贵安新区分校 | E110: 24010202小学语文 | F110: 120 | G110: 80.00 | H110: 32.00 | I110: 79.4 | J110: 47.64 | K110: 79.64
A111: 108 | B111: 24010201421 | C111: 张燕 | D111: 贵阳市实验小学贵安新区分校 | E111: 24010202小学语文 | F111: 122 | G111: 81.33 | H111: 32.53 | I111: 77.8 | J111: 46.68 | K111: 79.21
A112: 109 | B112: 24010201702 | C112: 安霞 | D112: 贵阳市实验小学贵安新区分校 | E112: 24010202小学语文 | F112: 117.5 | G112: 78.33 | H112: 31.33 | I112: 79.4 | J112: 47.64 | K112: 78.97
A113: 110 | B113: 24010204428 | C113: 范莎 | D113: 贵阳市实验小学贵安新区分校 | E113: 24010202小学语文 | F113: 117 | G113: 78.00 | H113: 31.20 | I113: 78.8 | J113: 47.28 | K113: 78.48
A114: 111 | B114: 24010200528 | C114: 文梅 | D114: 贵阳市实验小学贵安新区分校 | E114: 24010202小学语文 | F114: 119.5 | G114: 79.67 | H114: 31.87 | I114: 76.8 | J114: 46.08 | K114: 77.95
A115: 112 | B115: 24010204701 | C115: 周丹 | D115: 贵阳市实验小学贵安新区分校 | E115: 24010202小学语文 | F115: 125 | G115: 83.33 | H115: 33.33 | I115: 74.2 | J115: 44.52 | K115: 77.85
A116: 113 | B116: 24010205824 | C116: 张依依 | D116: 贵阳市实验小学贵安新区分校 | E116: 24010202小学语文 | F116: 122.5 | G116: 81.67 | H116: 32.67 | I116: 75.2 | J116: 45.12 | K116: 77.79
A117: 114 | B117: 24010200422 | C117: 江烈 | D117: 贵阳市实验小学贵安新区分校 | E117: 24010202小学语文 | F117: 121.5 | G117: 81.00 | H117: 32.40 | I117: 75.4 | J117: 45.24 | K117: 77.64
A118: 115 | B118: 24010204302 | C118: 石金玉 | D118: 贵阳市实验小学贵安新区分校 | E118: 24010202小学语文 | F118: 117 | G118: 78.00 | H118: 31.20 | I118: 77.2 | J118: 46.32 | K118: 77.52
A119: 116 | B119: 24010204920 | C119: 卢艳红 | D119: 贵阳市实验小学贵安新区分校 | E119: 24010202小学语文 | F119: 123.5 | G119: 82.33 | H119: 32.93 | I119: 73.8 | J119: 44.28 | K119: 77.21
A120: 117 | B120: 24010206326 | C120: 张宇 | D120: 贵阳市实验小学贵安新区分校 | E120: 24010202小学语文 | F120: 118 | G120: 78.67 | H120: 31.47 | I120: 76 | J120: 45.60 | K120: 77.07
A121: 118 | B121: 24010205125 | C121: 张敬 | D121: 贵阳市实验小学贵安新区分校 | E121: 24010202小学语文 | F121: 120 | G121: 80.00 | H121: 32.00 | I121: 70.4 | J121: 42.24 | K121: 74.24
A122: 119 | B122: 24010204121 | C122: 胡江凤 | D122: 贵阳市实验小学贵安新区分校 | E122: 24010202小学语文 | F122: 118.5 | G122: 79.00 | H122: 31.60 | I122: 67.8 | J122: 40.68 | K122: 72.28
A123: 120 | B123: 24010201426 | C123: 饶引 | D123: 贵阳市实验小学贵安新区分校 | E123: 24010202小学语文 | F123: 119 | G123: 79.33 | H123: 31.73 | I123: 66 | J123: 39.60 | K123: 71.33
A124: 121 | B124: 24010202714 | C124: 文江媛 | D124: 贵阳市实验小学贵安新区分校 | E124: 24010202小学语文 | F124: 117.5 | G124: 78.33 | H124: 31.33 | I124: 65.4 | J124: 39.24 | K124: 70.57
A125: 122 | B125: 24010204128 | C125: 陈来正 | D125: 贵阳市实验小学贵安新区分校 | E125: 24010202小学语文 | F125: 117.5 | G125: 78.33 | H125: 31.33 | I125: 缺考
A126: 123 | B126: 24010206120 | C126: 张宁 | D126: 贵阳市实验小学贵安新区分校 | E126: 24010202小学语文 | F126: 117.5 | G126: 78.33 | H126: 31.33 | I126: 缺考
A127: 124 | B127: 24010202421 | C127: 刘艳 | D127: 贵阳市实验小学贵安新区分校 | E127: 24010203小学数学 | F127: 125 | G127: 83.33 | H127: 33.33 | I127: 86.4 | J127: 51.84 | K127: =H127+J127 -> 85.17 | L127: 是
A128: 125 | B128: 24010206021 | C128: 姚前前 | D128: 贵阳市实验小学贵安新区分校 | E128: 24010203小学数学 | F128: 123.5 | G128: 82.33 | H128: 32.93 | I128: 84.4 | J128: 50.64 | K128: 83.57 | L128: 是
A129: 126 | B129: 24010204905 | C129: 商雨婷 | D129: 贵阳市实验小学贵安新区分校 | E129: 24010203小学数学 | F129: 118.5 | G129: 79.00 | H129: 31.60 | I129: 84 | J129: 50.40 | K129: 82.00 | L129: 是
A130: 127 | B130: 24010200805 | C130: 耿海艳 | D130: 贵阳市实验小学贵安新区分校 | E130: 24010203小学数学 | F130: 120.5 | G130: 80.33 | H130: 32.13 | I130: 80 | J130: 48.00 | K130: 80.13 | L130: 是
A131: 128 | B131: 24010201519 | C131: 许维 | D131: 贵阳市实验小学贵安新区分校 | E131: 24010203小学数学 | F131: 124 | G131: 82.67 | H131: 33.07 | I131: 78.4 | J131: 47.04 | K131: 80.11
A132: 129 | B132: 24010204906 | C132: 吴超绘 | D132: 贵阳市实验小学贵安新区分校 | E132: 24010203小学数学 | F132: 127 | G132: 84.67 | H132: 33.87 | I132: 76.8 | J132: 46.08 | K132: 79.95
A133: 130 | B133: 24010204011 | C133: 艾明蕴 | D133: 贵阳市实验小学贵安新区分校 | E133: 24010203小学数学 | F133: 117 | G133: 78.00 | H133: 31.20 | I133: 80.8 | J133: 48.48 | K133: 79.68
A134: 131 | B134: 24010203906 | C134: 甄晓婕 | D134: 贵阳市实验小学贵安新区分校 | E134: 24010203小学数学 | F134: 126.5 | G134: 84.33 | H134: 33.73 | I134: 75 | J134: 45.00 | K134: 78.73
A135: 132 | B135: 24010206319 | C135: 谢望 | D135: 贵阳市实验小学贵安新区分校 | E135: 24010203小学数学 | F135: 112.5 | G135: 75.00 | H135: 30.00 | I135: 80.6 | J135: 48.36 | K135: 78.36
A136: 133 | B136: 24010202112 | C136: 吴拉拉 | D136: 贵阳市实验小学贵安新区分校 | E136: 24010203小学数学 | F136: 117.5 | G136: 78.33 | H136: 31.33 | I136: 77.6 | J136: 46.56 | K136: 77.89
A137: 134 | B137: 24010205124 | C137: 张婷 | D137: 贵阳市实验小学贵安新区分校 | E137: 24010203小学数学 | F137: 120.5 | G137: 80.33 | H137: 32.13 | I137: 76 | J137: 45.60 | K137: 77.73
A138: 135 | B138: 24010203330 | C138: 徐语 | D138: 贵阳市实验小学贵安新区分校 | E138: 24010203小学数学 | F138: 114 | G138: 76.00 | H138: 30.40 | I138: 78.4 | J138: 47.04 | K138: 77.44
A139: 136 | B139: 24010200607 | C139: 赵慧琴 | D139: 贵阳市实验小学贵安新区分校 | E139: 24010203小学数学 | F139: 117 | G139: 78.00 | H139: 31.20 | I139: 77 | J139: 46.20 | K139: 77.40
A140: 137 | B140: 24010203721 | C140: 刘双梅 | D140: 贵阳市实验小学贵安新区分校 | E140: 24010203小学数学 | F140: 114.5 | G140: 76.33 | H140: 30.53 | I140: 77.8 | J140: 46.68 | K140: 77.21
A141: 138 | B141: 24010202807 | C141: 宋丽娟 | D141: 贵阳市实验小学贵安新区分校 | E141: 24010203小学数学 | F141: 117.5 | G141: 78.33 | H141: 31.33 | I141: 76.2 | J141: 45.72 | K141: 77.05
A142: 139 | B142: 24010206028 | C142: 吴贞蓉 | D142: 贵阳市实验小学贵安新区分校 | E142: 24010203小学数学 | F142: 112 | G142: 74.67 | H142: 29.87 | I142: 78 | J142: 46.80 | K142: 76.67
A143: 140 | B143: 24010205418 | C143: 刘序 | D143: 贵阳市实验小学贵安新区分校 | E143: 24010203小学数学 | F143: 121 | G143: 80.67 | H143: 32.27 | I143: 73.8 | J143: 44.28 | K143: 76.55
A144: 141 | B144: 24010205521 | C144: 朱洁玲 | D144: 贵阳市实验小学贵安新区分校 | E144: 24010203小学数学 | F144: 117.5 | G144: 78.33 | H144: 31.33 | I144: 74 | J144: 44.40 | K144: 75.73
A145: 142 | B145: 24010206208 | C145: 邓长仙 | D145: 贵阳市实验小学贵安新区分校 | E145: 24010203小学数学 | F145: 117 | G145: 78.00 | H145: 31.20 | I145: 71.8 | J145: 43.08 | K145: 74.28
A146: 143 | B146: 24010202712 | C146: 熊进 | D146: 贵阳市实验小学贵安新区分校 | E146: 24010203小学数学 | F146: 115.5 | G146: 77.00 | H146: 30.80 | I146: 72 | J146: 43.20 | K146: 74.00
A147: 144 | B147: 24010203726 | C147: 徐祖艳 | D147: 贵阳市实验小学贵安新区分校 | E147: 24010203小学数学 | F147: 117 | G147: 78.00 | H147: 31.20 | I147: 65.4 | J147: 39.24 | K147: 70.44
A148: 145 | B148: 24010206401 | C148: 邰再瑛 | D148: 贵阳市实验小学贵安新区分校 | E148: 24010203小学数学 | F148: 112.5 | G148: 75.00 | H148: 30.00 | I148: 67.4 | J148: 40.44 | K148: 70.44
A149: 146 | B149: 24010205811 | C149: 蒋令 | D149: 贵阳市实验小学贵安新区分校 | E149: 24010203小学数学 | F149: 117.5 | G149: 78.33 | H149: 31.33 | I149: 未按相关要求取得教师资格证不进入试教
A150: 147 | B150: 24010202413 | C150: 王俪润 | D150: 贵阳市实验小学贵安新区分校 | E150: 24010203小学数学 | F150: 111 | G150: 74.00 | H150: 29.60 | I150: 缺考
A151: 148 | B151: 24010201829 | C151: 廖羽 | D151: 贵阳市实验小学贵安新区分校 | E151: 24010204小学英语 | F151: 121.5 | G151: 81.00 | H151: 32.40 | I151: 87.8 | J151: 52.68 | K151: =H151+J151 -> 85.08 | L151: 是
A152: 149 | B152: 24010205311 | C152: 汤芬 | D152: 贵阳市实验小学贵安新区分校 | E152: 24010204小学英语 | F152: 123.5 | G152: 82.33 | H152: 32.93 | I152: 85.8 | J152: 51.48 | K152: 84.41
A153: 150 | B153: 24010204213 | C153: 彭诗琴 | D153: 贵阳市实验小学贵安新区分校 | E153: 24010204小学英语 | F153: 118 | G153: 78.67 | H153: 31.47 | I153: 87.6 | J153: 52.56 | K153: 84.03
A154: 151 | B154: 24010204510 | C154: 杨杰 | D154: 贵阳市实验小学贵安新区分校 | E154: 24010204小学英语 | F154: 127.5 | G154: 85.00 | H154: 34.00 | I154: 82.8 | J154: 49.68 | K154: 83.68
A155: 152 | B155: 24010201823 | C155: 毛红艳 | D155: 贵阳市实验小学贵安新区分校 | E155: 24010204小学英语 | F155: 120.5 | G155: 80.33 | H155: 32.13 | I155: 72.4 | J155: 43.44 | K155: 75.57
A156: 153 | B156: 24010203113 | C156: 代丙艳 | D156: 贵阳市实验小学贵安新区分校 | E156: 24010204小学英语 | F156: 119.5 | G156: 79.67 | H156: 31.87 | I156: 62.6 | J156: 37.56 | K156: 69.43
A157: 154 | B157: 24010205130 | C157: 李青燕 | D157: 贵阳市实验小学贵安新区分校 | E157: 24010205小学信息技术 | F157: 126 | G157: 84.00 | H157: 33.60 | I157: 81.8 | J157: 49.08 | K157: 82.68 | L157: 是
A158: 155 | B158: 24010200930 | C158: 郭梦沙 | D158: 贵阳市实验小学贵安新区分校 | E158: 24010205小学信息技术 | F158: 122 | G158: 81.33 | H158: 32.53 | I158: 82.2 | J158: 49.32 | K158: 81.85
A159: 156 | B159: 24010202402 | C159: 刁天艺 | D159: 贵阳市实验小学贵安新区分校 | E159: 24010205小学信息技术 | F159: 125 | G159: 83.33 | H159: 33.33 | I159: 77.4 | J159: 46.44 | K159: 79.77
A160: 157 | B160: 24010200222 | C160: 邹艳 | D160: 贵阳市实验小学贵安新区分校 | E160: 24010205小学信息技术 | F160: 123 | G160: 82.00 | H160: 32.80 | I160: 77.8 | J160: 46.68 | K160: 79.48
A161: 158 | B161: 24010204807 | C161: 韦小芬 | D161: 贵阳市实验小学贵安新区分校 | E161: 24010205小学信息技术 | F161: 122.5 | G161: 81.67 | H161: 32.67 | I161: 76.6 | J161: 45.96 | K161: 78.63
A162: 159 | B162: 24010203310 | C162: 熊春梅 | D162: 贵阳市实验小学贵安新区分校 | E162: 24010205小学信息技术 | F162: 122 | G162: 81.33 | H162: 32.53 | I162: 75.6 | J162: 45.36 | K162: 77.89
A163: 160 | B163: 24010100529 | C163: 胡兰 | D163: 贵州师范大学贵安新区附属初级中学 | E163: 24010101小学语文 | F163: 128.5 | G163: 85.67 | H163: 34.27 | I163: 87.4 | J163: 52.44 | K163: 86.71 | L163: 是
A164: 161 | B164: 24010102608 | C164: 赵忠蕊 | D164: 贵州师范大学贵安新区附属初级中学 | E164: 24010101小学语文 | F164: 120.5 | G164: 80.33 | H164: 32.13 | I164: 89.2 | J164: 53.52 | K164: 85.65 | L164: 是
A165: 162 | B165: 24010100410 | C165: 曾琼芳 | D165: 贵州师范大学贵安新区附属初级中学 | E165: 24010101小学语文 | F165: 127 | G165: 84.67 | H165: 33.87 | I165: 84.8 | J165: 50.88 | K165: 84.75 | L165: 是
A166: 163 | B166: 24010100114 | C166: 张曌瑾 | D166: 贵州师范大学贵安新区附属初级中学 | E166: 24010101小学语文 | F166: 128.00 | G166: 85.33 | H166: 34.13 | I166: 82.2 | J166: 49.32 | K166: 83.45 | L166: 是
A167: 164 | B167: 24010103518 | C167: 赵昕丽 | D167: 贵州师范大学贵安新区附属初级中学 | E167: 24010101小学语文 | F167: 121 | G167: 80.67 | H167: 32.27 | I167: 84.6 | J167: 50.76 | K167: 83.03 | L167: 是
A168: 165 | B168: 24010101122 | C168: 李倩茹 | D168: 贵州师范大学贵安新区附属初级中学 | E168: 24010101小学语文 | F168: 121.5 | G168: 81.00 | H168: 32.40 | I168: 84 | J168: 50.40 | K168: 82.80
A169: 166 | B169: 24010100317 | C169: 张馨悦 | D169: 贵州师范大学贵安新区附属初级中学 | E169: 24010101小学语文 | F169: 121.5 | G169: 81.00 | H169: 32.40 | I169: 83.2 | J169: 49.92 | K169: 82.32
A170: 167 | B170: 24010101223 | C170: 马晓煜 | D170: 贵州师范大学贵安新区附属初级中学 | E170: 24010101小学语文 | F170: 123 | G170: 82.00 | H170: 32.80 | I170: 81.6 | J170: 48.96 | K170: 81.76
A171: 168 | B171: 24010100109 | C171: 袁莉 | D171: 贵州师范大学贵安新区附属初级中学 | E171: 24010101小学语文 | F171: 121.5 | G171: 81.00 | H171: 32.40 | I171: 81.2 | J171: 48.72 | K171: 81.12
A172: 169 | B172: 24010100717 | C172: 李丹丹 | D172: 贵州师范大学贵安新区附属初级中学 | E172: 24010101小学语文 | F172: 124 | G172: 82.67 | H172: 33.07 | I172: 80 | J172: 48.00 | K172: 81.07
A173: 170 | B173: 24010101103 | C173: 张朗月 | D173: 贵州师范大学贵安新区附属初级中学 | E173: 24010101小学语文 | F173: 123.5 | G173: 82.33 | H173: 32.93 | I173: 80 | J173: 48.00 | K173: 80.93
A174: 171 | B174: 24010102502 | C174: 安芯莹 | D174: 贵州师范大学贵安新区附属初级中学 | E174: 24010101小学语文 | F174: 121.5 | G174: 81.00 | H174: 32.40 | I174: 80.8 | J174: 48.48 | K174: 80.88
A175: 172 | B175: 24010100912 | C175: 万思吉 | D175: 贵州师范大学贵安新区附属初级中学 | E175: 24010101小学语文 | F175: 121 | G175: 80.67 | H175: 32.27 | I175: 80.8 | J175: 48.48 | K175: 80.75
A176: 173 | B176: 24010100611 | C176: 张香华 | D176: 贵州师范大学贵安新区附属初级中学 | E176: 24010101小学语文 | F176: 128 | G176: 85.33 | H176: 34.13 | I176: 76.8 | J176: 46.08 | K176: 80.21
A177: 174 | B177: 24010101414 | C177: 吴漫 | D177: 贵州师范大学贵安新区附属初级中学 | E177: 24010101小学语文 | F177: 118.5 | G177: 79.00 | H177: 31.60 | I177: 79.4 | J177: 47.64 | K177: 79.24
A178: 175 | B178: 24010100504 | C178: 李玉兰 | D178: 贵州师范大学贵安新区附属初级中学 | E178: 24010101小学语文 | F178: 119 | G178: 79.33 | H178: 31.73 | I178: 78.4 | J178: 47.04 | K178: 78.77
A179: 176 | B179: 24010103704 | C179: 黄秀林 | D179: 贵州师范大学贵安新区附属初级中学 | E179: 24010101小学语文 | F179: 122 | G179: 81.33 | H179: 32.53 | I179: 77 | J179: 46.20 | K179: 78.73
A180: 177 | B180: 24010103429 | C180: 杨莉 | D180: 贵州师范大学贵安新区附属初级中学 | E180: 24010101小学语文 | F180: 119 | G180: 79.33 | H180: 31.73 | I180: 77.8 | J180: 46.68 | K180: 78.41
A181: 178 | B181: 24010103918 | C181: 郑杰 | D181: 贵州师范大学贵安新区附属初级中学 | E181: 24010101小学语文 | F181: 120.5 | G181: 80.33 | H181: 32.13 | I181: 76.2 | J181: 45.72 | K181: 77.85
A182: 179 | B182: 24010100405 | C182: 潘昌英 | D182: 贵州师范大学贵安新区附属初级中学 | E182: 24010101小学语文 | F182: 124 | G182: 82.67 | H182: 33.07 | I182: 73.8 | J182: 44.28 | K182: 77.35
A183: 180 | B183: 24010101729 | C183: 周国艳 | D183: 贵州师范大学贵安新区附属初级中学 | E183: 24010101小学语文 | F183: 118.5 | G183: 79.00 | H183: 31.60 | I183: 74.8 | J183: 44.88 | K183: 76.48
A184: 181 | B184: 24010101417 | C184: 何莹滢 | D184: 贵州师范大学贵安新区附属初级中学 | E184: 24010101小学语文 | F184: 118 | G184: 78.67 | H184: 31.47 | I184: 74 | J184: 44.40 | K184: 75.87
A185: 182 | B185: 24010103902 | C185: 王君翼 | D185: 贵州师范大学贵安新区附属初级中学 | E185: 24010101小学语文 | F185: 123 | G185: 82.00 | H185: 32.80 | I185: 71.2 | J185: 42.72 | K185: 75.52
A186: 183 | B186: 24010100502 | C186: 胡琴园 | D186: 贵州师范大学贵安新区附属初级中学 | E186: 24010101小学语文 | F186: 121 | G186: 80.67 | H186: 32.27 | I186: 71 | J186: 42.60 | K186: 74.87
A187: 184 | B187: 24010101913 | C187: 李玲 | D187: 贵州师范大学贵安新区附属初级中学 | E187: 24010101小学语文 | F187: 121 | G187: 80.67 | H187: 32.27 | I187: 70.8 | J187: 42.48 | K187: 74.75
A188: 185 | B188: 24010103602 | C188: 杨成柳 | D188: 贵州师范大学贵安新区附属初级中学 | E188: 24010101小学语文 | F188: 119.5 | G188: 79.67 | H188: 31.87 | I188: 71.4 | J188: 42.84 | K188: 74.71
A189: 186 | B189: 24010101609 | C189: 杨月 | D189: 贵州师范大学贵安新区附属初级中学 | E189: 24010101小学语文 | F189: 119 | G189: 79.33 | H189: 31.73 | I189: 69.4 | J189: 41.64 | K189: 73.37
A190: 187 | B190: 24010100415 | C190: 杨彩妮 | D190: 贵州师范大学贵安新区附属初级中学 | E190: 24010101小学语文 | F190: 133.5 | G190: 89.00 | H190: 35.60 | I190: 未按相关要求取得教师资格证不进入试教
A191: 188 | B191: 24010101908 | C191: 石丽昌 | D191: 贵州师范大学贵安新区附属初级中学 | E191: 24010101小学语文 | F191: 122.5 | G191: 81.67 | H191: 32.67 | I191: 缺考
A192: 189 | B192: 24010102310 | C192: 彭义猜 | D192: 贵州师范大学贵安新区附属初级中学 | E192: 24010101小学语文 | F192: 121 | G192: 80.67 | H192: 32.27 | I192: 缺考
A193: 190 | B193: 24010100809 | C193: 高双映 | D193: 贵州师范大学贵安新区附属初级中学 | E193: 24010101小学语文 | F193: 118 | G193: 78.67 | H193: 31.47 | I193: 缺考
A194: 191 | B194: 24010101909 | C194: 冯守慧 | D194: 贵州师范大学贵安新区附属初级中学 | E194: 24010102小学数学 | F194: 124 | G194: 82.67 | H194: 33.07 | I194: 87.4 | J194: 52.44 | K194: =H194+J194 -> 85.51 | L194: 是
A195: 192 | B195: 24010103721 | C195: 任义兰 | D195: 贵州师范大学贵安新区附属初级中学 | E195: 24010102小学数学 | F195: 123 | G195: 82.00 | H195: 32.80 | I195: 83.4 | J195: 50.04 | K195: 82.84 | L195: 是
A196: 193 | B196: 24010103426 | C196: 吴皇宝 | D196: 贵州师范大学贵安新区附属初级中学 | E196: 24010102小学数学 | F196: 118.5 | G196: 79.00 | H196: 31.60 | I196: 84.4 | J196: 50.64 | K196: 82.24 | L196: 是
A197: 194 | B197: 24010103320 | C197: 张梓瑶 | D197: 贵州师范大学贵安新区附属初级中学 | E197: 24010102小学数学 | F197: 115.5 | G197: 77.00 | H197: 30.80 | I197: 84.2 | J197: 50.52 | K197: 81.32
A198: 195 | B198: 24010103830 | C198: 吴菲 | D198: 贵州师范大学贵安新区附属初级中学 | E198: 24010102小学数学 | F198: 120 | G198: 80.00 | H198: 32.00 | I198: 81 | J198: 48.60 | K198: 80.60
A199: 196 | B199: 24010101329 | C199: 孙雪梅 | D199: 贵州师范大学贵安新区附属初级中学 | E199: 24010102小学数学 | F199: 119.5 | G199: 79.67 | H199: 31.87 | I199: 79.4 | J199: 47.64 | K199: 79.51
A200: 197 | B200: 24010102117 | C200: 张尚欢 | D200: 贵州师范大学贵安新区附属初级中学 | E200: 24010102小学数学 | F200: 115 | G200: 76.67 | H200: 30.67 | I200: 80 | J200: 48.00 | K200: 78.67
... 117 more rows

Sheet Sheet3
B2: 35.07 | C2: =TEXT(B:B,"0.00") -> 35.07
B3: 34.93 | C3: =TEXT(B:B,"0.00") -> 34.93
B4: 33.87 | C4: =TEXT(B:B,"0.00") -> 33.87
B5: 33.73 | C5: =TEXT(B:B,"0.00") -> 33.73
B6: 33.60 | C6: 33.60
B7: 33.60 | C7: 33.60
B8: 33.07 | C8: 33.07
B9: 32.93 | C9: 32.93
B10: 32.93 | C10: 32.93
B11: 32.80 | C11: 32.80
B12: 32.53 | C12: 32.53
B13: 32.40 | C13: 32.40
B14: 32.40 | C14: 32.40
B15: 32.40 | C15: 32.40
B16: 32.27 | C16: 32.27
B17: 32.27 | C17: 32.27
B18: 32.27 | C18: 32.27
B19: 32.13 | C19: 32.13
B20: 32.13 | C20: 32.13
B21: 32.00 | C21: 32.00
B22: 32.00 | C22: 32.00
B23: 32.00 | C23: 32.00
B24: 31.87 | C24: 31.87
B25: 31.87 | C25: 31.87
B26: 31.87 | C26: 31.87
B27: 31.87 | C27: 31.87
B28: 31.87 | C28: 31.87
B29: 31.73 | C29: 31.73
B30: 31.73 | C30: 31.73
B31: 31.73 | C31: 31.73
B32: 31.73 | C32: 31.73
B33: 34.27 | C33: 34.27
B34: 33.33 | C34: 33.33
B35: 32.93 | C35: 32.93
B36: 32.67 | C36: 32.67
B37: 32.53 | C37: =TEXT(B:B,"0.00") -> 32.53
B38: 32.40 | C38: 32.40
B39: 32.27 | C39: 32.27
B40: 32.00 | C40: 32.00
B41: 32.00 | C41: 32.00
B42: 32.00 | C42: 32.00
B43: 32.00 | C43: 32.00
B44: 31.87 | C44: 31.87
B45: 31.73 | C45: 31.73
B46: 31.60 | C46: 31.60
B47: 31.60 | C47: 31.60
B48: 31.47 | C48: 31.47
B49: 31.47 | C49: 31.47
B50: 31.33 | C50: 31.33
B51: 31.33 | C51: 31.33
B52: 31.33 | C52: 31.33
B53: 31.33 | C53: 31.33
B54: 31.33 | C54: 31.33
B55: 31.20 | C55: 31.20
B56: 31.20 | C56: 31.20
B57: 31.20 | C57: 31.20
B58: 35.60 | C58: 35.60
B59: 34.27 | C59: 34.27
B60: 34.13 | C60: 34.13
B61: 34.13 | C61: 34.13
B62: 33.87 | C62: 33.87
B63: 33.07 | C63: 33.07
B64: 33.07 | C64: 33.07
B65: 32.93 | C65: 32.93
B66: 32.80 | C66: 32.80
B67: 32.80 | C67: 32.80
B68: 32.67 | C68: 32.67
B69: 32.53 | C69: =TEXT(B:B,"0.00") -> 32.53
B70: 32.40 | C70: 32.40
B71: 32.40 | C71: 32.40
B72: 32.40 | C72: 32.40
B73: 32.40 | C73: 32.40
B74: 32.27 | C74: 32.27
B75: 32.27 | C75: 32.27
B76: 32.27 | C76: 32.27
B77: 32.27 | C77: 32.27
B78: 32.27 | C78: 32.27
B79: 32.13 | C79: 32.13
B80: 32.13 | C80: 32.13
B81: 31.87 | C81: 31.87
B82: 31.73 | C82: 31.73
B83: 31.73 | C83: 31.73
B84: 31.73 | C84: 31.73
B85: 31.60 | C85: 31.60
B86: 31.60 | C86: 31.60
B87: 31.47 | C87: 31.47
B88: 31.47 | C88: 31.47
B89: 33.47 | C89: 33.47
B90: 33.47 | C90: 33.47
B91: 32.40 | C91: 32.40
B92: 31.87 | C92: 31.87
B93: 31.87 | C93: 31.87
B94: 30.67 | C94: 30.67
B95: 31.87 | C95: 31.87
B96: 31.60 | C96: 31.60
B97: 31.47 | C97: 31.47
B98: 31.07 | C98: 31.07
B99: 31.07 | C99: 31.07
B100: 31.07 | C100: 31.07
B101: 32.67 | C101: =TEXT(B:B,"0.00") -> 32.67
B102: 30.53 | C102: =TEXT(B:B,"0.00") -> 30.53
B103: 30.00 | C103: =TEXT(B:B,"0.00") -> 30.00
B104: 29.60 | C104: =TEXT(B:B,"0.00") -> 29.60
B105: 29.47 | C105: =TEXT(B:B,"0.00") -> 29.47
B106: 28.80 | C106: =TEXT(B:B,"0.00") -> 28.80
B107: 35.20 | C107: =TEXT(B:B,"0.00") -> 35.20
B108: 32.40 | C108: =TEXT(B:B,"0.00") -> 32.40
B109: 31.73 | C109: =TEXT(B:B,"0.00") -> 31.73
B110: 31.60 | C110: =TEXT(B:B,"0.00") -> 31.60
B111: 31.20 | C111: =TEXT(B:B,"0.00") -> 31.20
B112: 30.93 | C112: =TEXT(B:B,"0.00") -> 30.93
B113: 33.60 | C113: =TEXT(B:B,"0.00") -> 33.60
B114: 32.80 | C114: =TEXT(B:B,"0.00") -> 32.80
B115: 31.6 | C115: =TEXT(B:B,"0.00") -> 31.60
B116: 31.468 | C116: 31.47
B117: 31.468 | C117: 31.47
B118: 31.332 | C118: 31.33
B119: 32.4 | C119: 32.40
B120: 31.068 | C120: 31.07
B121: 30.4 | C121: 30.40
B122: 30.132 | C122: 30.13
B123: 29.6 | C123: 29.60
B124: 29.468 | C124: 29.47
B125: 29.468 | C125: 29.47
B126: 31.332 | C126: 31.33
B127: 30.932 | C127: 30.93
B128: 30.668 | C128: 30.67
B129: 29.732 | C129: 29.73
B130: 28.532 | C130: 28.53
B131: 27.468 | C131: 27.47
B132: 27.468 | C132: 27.47
B133: 34 | C133: 34.00
B134: 32.932 | C134: 32.93
B135: 31.6 | C135: 31.60
B136: 30.932 | C136: 30.93
B137: 30.8 | C137: 30.80
B138: 29.468 | C138: 29.47
B139: 34.668 | C139: 34.67
B140: 33.068 | C140: 33.07
B141: 32.932 | C141: 32.93
B142: 32.8 | C142: 32.80
B143: 32 | C143: 32.00
B144: 31.868 | C144: 31.87
B145: 31.732 | C145: 31.73
B146: 31.6 | C146: 31.60
B147: 30.8 | C147: 30.80
B148: 30.668 | C148: 30.67
B149: 30.668 | C149: 30.67
B150: 30.4 | C150: 30.40
B151: 30.4 | C151: 30.40
B152: 30.268 | C152: 30.27
B153: 30.268 | C153: 30.27
B154: 29.6 | C154: 29.60
B155: 29.468 | C155: 29.47
B156: 29.468 | C156: 29.47
B157: 33.868 | C157: 33.87
B158: 33.732 | C158: 33.73
B159: 33.332 | C159: 33.33
B160: 33.068 | C160: 33.07
B161: 32.932 | C161: 32.93
B162: 32.268 | C162: 32.27
B163: 32.132 | C163: 32.13
B164: 32.132 | C164: 32.13
B165: 31.6 | C165: 31.60
B166: 31.332 | C166: 31.33
B167: 31.332 | C167: 31.33
B168: 31.332 | C168: 31.33
B169: 31.332 | C169: 31.33
B170: 31.2 | C170: 31.20
B171: 31.2 | C171: 31.20
B172: 31.2 | C172: 31.20
B173: 31.2 | C173: 31.20
B174: 30.8 | C174: 30.80
B175: 30.532 | C175: 30.53
B176: 30.4 | C176: 30.40
B177: 30 | C177: 30.00
B178: 30 | C178: 30.00
B179: 29.868 | C179: =TEXT(B:B,"0.00") -> 29.87
B180: 29.6 | C180: 29.60
B181: 34 | C181: 34.00
B182: 32.932 | C182: 32.93
B183: 32.4 | C183: 32.40
B184: 32.132 | C184: 32.13
B185: 31.868 | C185: 31.87
B186: 31.468 | C186: 31.47
B187: 34.932 | C187: 34.93
B188: 34 | C188: 34.00
B189: 33.468 | C189: 33.47
B190: 32.532 | C190: 32.53
B191: 32.4 | C191: 32.40
B192: 32.132 | C192: 32.13
B193: 31.868 | C193: 31.87
B194: 31.868 | C194: 31.87
B195: 31.868 | C195: 31.87
B196: 31.732 | C196: 31.73
B197: 31.468 | C197: 31.47
B198: 31.332 | C198: 31.33
B199: 33.6 | C199: 33.60
B200: 33.332 | C200: 33.33
B201: 32.8 | C201: 32.80
... 114 more rows
